[Event "Fagernes GM Swiss 2020"]
[Site "Fagernes"]
[Date "2020.10.05"]
[Round "2.19"]
[White "Krivenko, Dion"]
[Black "Brodtkorb, Lars Johan"]
[Result "1-0"]
[ECO "C00"]
[WhiteElo "2047"]
[BlackElo "2166"]
[Annotator "NA"]
[PlyCount "91"]
[EventDate "2020.10.04"]
[EventType "swiss"]
[EventCountry "NOR"]
[SourceTitle "playchess.com"]
[Source "ChessBase"]
[SourceQuality "1"]
[TimeControl "40/6000+30:2400+30"]

1. e4 {[%emt 0:00:00]} e6 {[%emt 0:17:56]} 2. Qe2 {[%emt 0:00:02]} Be7 {[%emt 0:00:22]} 3. Nf3 {[%emt 0:00:38]} d5 {[%emt 0:00:12]} 4. d3 {[%emt 0:02:43]} Nf6 {[%emt 0:00:17]} 5. g3 {[%emt 0:01:06]} a5 {[%emt 0:15:36]} 6. e5 {[%emt 0:05:05]} Nfd7 {[%emt 0:00:15]} 7. c4 {[%emt 0:02:04]} Nc5 {[%emt 0:10:17]} 8. d4 {[%emt 0:12:06]} Ne4 {[%emt 0:01:53]} 9. Bg2 {[%emt 0:03:09]} Bb4+ {[%emt 0:04:26]} 10. Nbd2 {[%emt 0:08:07]} Nc6 {[%emt 0:03:24]} 11. O-O {[%emt 0:07:48]} Nxd2 {[%emt 0:05:05]} 12. Bxd2 {[%emt 0:00:53]} Bxd2 {[%emt 0:00:41]} 13. Qxd2 {[%emt 0:00:26]} dxc4 {[%emt 0:05:05]} 14. Rfc1 {[%emt 0:03:59]} Nb4 {[%emt 0:07:51]} 15. Rxc4 {[%emt 0:03:26]} O-O {[%emt 0:04:06]} 16. Rac1 {[%emt 0:06:52]} Bd7 {[%emt 0:03:25]} 17. a3 {[%emt 0:04:51]} Nd5 {[%emt 0:04:00]} 18. Ng5 {[%emt 0:04:44]} Bc6 {[%emt 0:08:16]} 19. h4 {[%emt 0:05:38]} h6 {[%emt 0:00:29]} 20. Ne4 {[%emt 0:03:51]} Qe7 {[%emt 0:05:42]} 21. Rc5 {[%emt 0:02:19]} a4 {[%emt 0:01:02]} 22. Nc3 {[%emt 0:02:11]} Rfd8 {[%emt 0:01:23]} 23. Nxd5 {[%emt 0:03:40]} exd5 {[%emt 0:00:03]} 24. f4 {[%emt 0:01:17]} Ra6 {[%emt 0:03:02]} 25. f5 {[%emt 0:02:37]} Rb6 {[%emt 0:00:35]} 26. R1c2 {[%emt 0:06:04]} Rb3 {[%emt 0:01:08]} 27. Qf4 {[%emt 0:01:55]} f6 {[%emt 0:00:07]} 28. Re2 {[%emt 0:05:56]} Bb5 {[%emt 0:02:42]} 29. Rec2 {[%emt 0:03:16]} c6 {[%emt 0:00:57]} 30. e6 {[%emt 0:05:16]} Qd6 {[%emt 0:00:44]} 31. Qxd6 {[%emt 0:00:37]} Rxd6 {[%emt 0:00:02]} 32. R5c3 {[%emt 0:00:16]} Bd3 {[%emt 0:03:05]} 33. Rf2 {[%emt 0:01:21]} Kf8 {[%emt 0:01:34]} 34. Bf1 {[%emt 0:01:29]} Be4 {[%emt 0:00:42]} 35. Bg2 {[%emt 0:00:23]} Bd3 {[%emt 0:00:10]} 36. Bf1 {[%emt 0:00:40]} Rxc3 {[%emt 0:00:50]} 37. bxc3 {[%emt 0:00:04]} Bxf1 {[%emt 0:00:29]} 38. Kxf1 {[%emt 0:00:14]} h5 {[%emt 0:00:15]} 39. Ke2 {[%emt 0:01:07]} g6 {[%emt 0:00:19]} 40. Kd3 {[%emt 0:00:45]} Ke7 {[%emt 0:00:59]} 41. fxg6 {[%emt 0:02:29]} Kxe6 {[%emt 0:07:21]} 42. g4 {[%emt 0:18:19]} hxg4 {[%emt 0:01:40]} 43. h5 {[%emt 0:00:17]} f5 {[%emt 0:23:24]} 44. h6 {[%emt 0:02:46]} Kf6 {[%emt 0:06:08]} 45. g7 {[%emt 0:00:52]} Rd8 {[%emt 0:00:13]} 46. Rxf5+ {[%emt 0:00:54]} 1-0

[Event "Fagernes GM Swiss 2020"]
[Site "Fagernes"]
[Date "2020.10.05"]
[Round "2.20"]
[White "Royset, Pal"]
[Black "Sorensen, Simen"]
[Result "1-0"]
[ECO "B46"]
[WhiteElo "2150"]
[BlackElo "2047"]
[Annotator "NA"]
[PlyCount "69"]
[EventDate "2020.10.04"]
[EventType "swiss"]
[EventCountry "NOR"]
[SourceTitle "playchess.com"]
[Source "ChessBase"]
[SourceQuality "1"]
[TimeControl "40/6000+30:2400+30"]

1. e4 {[%emt 0:00:00]} c5 {[%emt 0:00:25]} 2. Nc3 {[%emt 0:01:07]} e6 {[%emt 0:00:55]} 3. Nf3 {[%emt 0:02:19]} a6 {[%emt 0:02:26]} 4. d4 {[%emt 0:01:48]} cxd4 {[%emt 0:00:54]} 5. Nxd4 {[%emt 0:00:17]} Nc6 {[%emt 0:01:28]} 6. Nxc6 {[%emt 0:02:47]} bxc6 {[%emt 0:00:55]} 7. Bd3 {[%emt 0:00:56]} d5 {[%emt 0:03:05]} 8. O-O {[%emt 0:03:56]} Nf6 {[%emt 0:04:50]} 9. Qe2 {[%emt 0:02:38]} Be7 {[%emt 0:02:46]} 10. f4 {[%emt 0:08:20]} h5 {[%emt 0:33:31]} 11. e5 {[%emt 0:11:39]} Ng4 {[%emt 0:01:35]} 12. Na4 {[%emt 0:00:47]} Qa5 {[%emt 0:13:10]} 13. b3 {[%emt 0:04:49]} g6 {[%emt 0:01:26]} 14. c4 {[%emt 0:09:24]} dxc4 {[%emt 0:06:34]} 15. Be4 {[%emt 0:00:43]} Bd7 {[%emt 0:06:18]} 16. Qxc4 {[%emt 0:03:48]} Qb5 {[%emt 0:01:54]} 17. Qc2 {[%emt 0:05:46]} Rc8 {[%emt 0:04:28]} 18. Rd1 {[%emt 0:08:11]} Rg8 {[%emt 0:03:32]} 19. h3 {[%emt 0:06:04]} Nh6 {[%emt 0:00:45]} 20. Be3 {[%emt 0:00:58]} c5 {[%emt 0:03:43]} 21. Nb2 {[%emt 0:09:08]} Nf5 {[%emt 0:01:58]} 22. Nc4 {[%emt 0:01:42]} Bc6 {[%emt 0:03:34]} 23. Rd2 {[%emt 0:06:33]} Ng3 {[%emt 0:05:07]} 24. Bxc6+ {[%emt 0:02:34]} Qxc6 {[%emt 0:01:56]} 25. Rad1 {[%emt 0:03:39]} Nf5 {[%emt 0:00:51]} 26. Bf2 {[%emt 0:01:59]} g5 {[%emt 0:00:35]} 27. Rd6 {[%emt 0:06:39]} Bxd6 {[%emt 0:01:08]} 28. exd6 {[%emt 0:00:04]} Nd4 {[%emt 0:01:33]} 29. Qh7 {[%emt 0:00:48]} Kf8 {[%emt 0:02:36]} 30. Ne5 {[%emt 0:01:06]} Nf3+ {[%emt 0:00:19]} 31. gxf3 {[%emt 0:00:16]} gxf4+ {[%emt 0:00:08]} 32. Kh2 {[%emt 0:00:31]} Qb7 {[%emt 0:01:03]} 33. d7 {[%emt 0:00:35]} Rg7 {[%emt 0:00:20]} 34. Qh8+ {[%emt 0:00:47]} Rg8 {[%emt 0:00:06]} 35. Ng6+ {[%emt 0:01:50]} 1-0

[Event "Fagernes GM Swiss 2020"]
[Site "Fagernes"]
[Date "2020.10.05"]
[Round "2.21"]
[White "Eliseev, Sergey"]
[Black "Unneland, Mathias"]
[Result "0-1"]
[ECO "B30"]
[WhiteElo "2025"]
[BlackElo "2149"]
[Annotator "ChessBase"]
[PlyCount "76"]
[EventDate "2020.10.04"]
[EventType "swiss"]
[EventCountry "NOR"]
[SourceTitle "playchess.com"]
[Source "ChessBase"]
[SourceQuality "1"]
[TimeControl "40/6000+30:2400+30"]

1. e4 {[%emt 0:00:00]} c5 {[%emt 0:00:00]} 2. Nf3 {[%emt 0:00:00]} Nc6 {[%emt 0:00:12]} 3. Bb5 {[%emt 0:00:00]} e6 {[%emt 0:00:23]} 4. O-O {[%emt 0:00:46]} Nge7 {[%emt 0:00:06]} 5. d4 {[%emt 0:02:33]} cxd4 {[%emt 0:00:41]} 6. e5 {[%emt 0:05:27]} a6 {[%emt 0:03:56]} 7. Bd3 {[%emt 0:20:43]} d6 {[%emt 0:03:31]} 8. Bf4 {[%emt 0:07:30]} dxe5 {[%emt 0:03:48]} 9. Bxe5 {[%emt 0:00:13]} Nxe5 {[%emt 0:02:57]} 10. Nxe5 {[%emt 0:00:07]} Qc7 {[%emt 0:01:01]} 11. Re1 {[%emt 0:07:35]} Nc6 {[%emt 0:05:17]} 12. Nf3 {[%emt 0:07:01]} g6 {[%emt 0:08:08]} 13. Be4 {[%emt 0:08:49]} Bg7 {[%emt 0:00:31]} 14. Bxc6+ {[%emt 0:00:26]} bxc6 {[%emt 0:00:35]} 15. a4 {[%emt 0:22:47]} O-O {[%emt 0:00:47]} 16. a5 {[%emt 0:01:04]} c5 {[%emt 0:00:31]} 17. b3 {[%emt 0:06:24]} Bb7 {[%emt 0:00:22]} 18. Qd3 {[%emt 0:00:52]} e5 {[%emt 0:01:25]} 19. Nbd2 {[%emt 0:01:22]} Rae8 {[%emt 0:01:02]} 20. Ne4 {[%emt 0:06:45]} h6 {[%emt 0:04:45]} 21. Qc4 {[%emt 0:01:41]} Rc8 {[%emt 0:00:46]} 22. h4 {[%emt 0:03:43]} Kh8 {[%emt 0:02:29]} 23. h5 {[%emt 0:00:58]} f5 {[%emt 0:01:02]} 24. Nh4 {[%emt 0:03:05]} fxe4 {[%emt 0:00:48]} 25. Nxg6+ {[%emt 0:00:05]} Kh7 {[%emt 0:00:08]} 26. Nxf8+ {[%emt 0:00:23]} Rxf8 {[%emt 0:00:25]} 27. b4 {[%emt 0:00:22]} e3 {[%emt 0:00:36]} 28. fxe3 {[%emt 0:02:03]} dxe3 {[%emt 0:02:22]} 29. Re2 {[%emt 0:00:53]} e4 {[%emt 0:05:19]} 30. Rae1 {[%emt 0:00:46]} Rf5 {[%emt 0:02:06]} 31. bxc5 {[%emt 0:00:26]} Rxh5 {[%emt 0:00:12]} 32. Rxe3 {[%emt 0:00:36]} Qh2+ {[%emt 0:02:48]} 33. Kf1 {[%emt 0:00:06]} Rf5+ {[%emt 0:00:26]} 34. Ke2 {[%emt 0:00:11]} Qxg2+ {[%emt 0:00:21]} 35. Kd1 {[%emt 0:00:03]} Rd5+ {[%emt 0:00:52]} 36. Kc1 {[%emt 0:00:12]} Qd2+ {[%emt 0:00:13]} 37. Kb1 {[%emt 0:00:04]} Rd4 {[%emt 0:00:11]} 38. R3e2 {[%emt 0:01:49]} Qxe1+ {[%emt 0:00:17]} 0-1

[Event "Fagernes GM Swiss 2020"]
[Site "Fagernes"]
[Date "2020.10.05"]
[Round "2.22"]
[White "Nilsen, Tobias Lang"]
[Black "Kvendseth, Thyra"]
[Result "1-0"]
[ECO "C78"]
[WhiteElo "2146"]
[BlackElo "2017"]
[Annotator "ChessBase"]
[PlyCount "80"]
[EventDate "2020.10.04"]
[EventType "swiss"]
[EventCountry "NOR"]
[SourceTitle "playchess.com"]
[Source "ChessBase"]
[SourceQuality "1"]
[TimeControl "40/6000+30:2400+30"]

1. e4 {[%emt 0:00:00]} e5 {[%emt 0:00:00]} 2. Nf3 {[%emt 0:00:00]} Nc6 {[%emt 0:00:00]} 3. Bb5 {[%emt 0:00:00]} a6 {[%emt 0:00:00]} 4. Ba4 {[%emt 0:00:00]} Nf6 {[%emt 0:00:07]} 5. O-O {[%emt 0:00:04]} Bc5 {[%emt 0:00:37]} 6. c3 {[%emt 0:04:39]} b5 {[%emt 0:00:12]} 7. Bb3 {[%emt 0:00:25]} d6 {[%emt 0:00:13]} 8. d4 {[%emt 0:01:31]} Bb6 {[%emt 0:00:33]} 9. a4 {[%emt 0:08:29]} Rb8 {[%emt 0:00:54]} 10. a5 {[%emt 0:01:36]} Nxa5 {[%emt 0:07:42]} 11. Rxa5 {[%emt 0:00:34]} Bxa5 {[%emt 0:00:06]} 12. dxe5 {[%emt 0:00:07]} dxe5 {[%emt 0:17:39]} 13. Qxd8+ {[%emt 0:00:14]} Kxd8 {[%emt 0:00:03]} 14. Nxe5 {[%emt 0:00:10]} Bb7 {[%emt 0:03:08]} 15. Nxf7+ {[%emt 0:00:27]} Ke7 {[%emt 0:00:23]} 16. Nxh8 {[%emt 0:01:19]} Rxh8 {[%emt 0:01:43]} 17. e5 {[%emt 0:00:15]} Ne4 {[%emt 0:03:30]} 18. Be3 {[%emt 0:01:07]} Bb6 {[%emt 0:08:40]} 19. Bxb6 {[%emt 0:00:35]} cxb6 {[%emt 0:00:05]} 20. f3 {[%emt 0:00:57]} Nc5 {[%emt 0:01:01]} 21. Bc2 {[%emt 0:02:29]} Nd7 {[%emt 0:13:10]} 22. Re1 {[%emt 0:03:41]} g5 {[%emt 0:04:41]} 23. Nd2 {[%emt 0:13:56]} h6 {[%emt 0:04:32]} 24. Nb3 {[%emt 0:00:13]} Bd5 {[%emt 0:04:04]} 25. Nd4 {[%emt 0:00:39]} Be6 {[%emt 0:05:26]} 26. g3 {[%emt 0:00:15]} Rf8 {[%emt 0:01:06]} 27. Nc6+ {[%emt 0:00:08]} Kf7 {[%emt 0:00:17]} 28. f4 {[%emt 0:01:19]} gxf4 {[%emt 0:01:12]} 29. gxf4 {[%emt 0:00:06]} Rg8+ {[%emt 0:02:25]} 30. Kf2 {[%emt 0:00:54]} Nc5 {[%emt 0:03:23]} 31. Nd4 {[%emt 0:19:49]} Bd5 {[%emt 0:03:33]} 32. Rg1 {[%emt 0:01:54]} Rxg1 {[%emt 0:04:12]} 33. Kxg1 {[%emt 0:00:58]} Be4 {[%emt 0:00:17]} 34. Bxe4 {[%emt 0:01:56]} Nxe4 {[%emt 0:00:07]} 35. Kf1 {[%emt 0:14:31]} Nc5 {[%emt 0:00:56]} 36. Ke2 {[%emt 0:00:35]} Na4 {[%emt 0:00:39]} 37. b3 {[%emt 0:00:13]} Nxc3+ {[%emt 0:00:29]} 38. Kd3 {[%emt 0:00:05]} b4 {[%emt 0:00:37]} 39. f5 {[%emt 0:00:26]} b5 {[%emt 0:00:25]} 40. Nc6 {[%emt 0:00:23]} Nd5 {[%emt 0:00:19]} 1-0

[Event "Fagernes GM Swiss 2020"]
[Site "Fagernes"]
[Date "2020.10.05"]
[Round "2.23"]
[White "Tenold, Andreas"]
[Black "Grover, Sigurd Loe"]
[Result "1/2-1/2"]
[ECO "C08"]
[WhiteElo "1935"]
[BlackElo "2145"]
[Annotator "NA"]
[PlyCount "77"]
[EventDate "2020.10.04"]
[EventType "swiss"]
[EventCountry "NOR"]
[SourceTitle "playchess.com"]
[Source "ChessBase"]
[SourceQuality "1"]
[TimeControl "40/6000+30:2400+30"]

1. e4 {[%emt 0:00:00]} e6 {[%emt 0:00:00]} 2. d4 {[%emt 0:00:00]} d5 {[%emt 0:00:00]} 3. Nd2 {[%emt 0:00:00]} c5 {[%emt 0:00:00]} 4. Ngf3 {[%emt 0:00:23]} Nf6 {[%emt 0:00:00]} 5. exd5 {[%emt 0:01:01]} exd5 {[%emt 0:00:01]} 6. Be2 {[%emt 0:04:37]} Be7 {[%emt 0:02:43]} 7. O-O {[%emt 0:02:01]} O-O {[%emt 0:01:13]} 8. dxc5 {[%emt 0:08:38]} Bxc5 {[%emt 0:00:19]} 9. Nb3 {[%emt 0:00:15]} Bb6 {[%emt 0:00:07]} 10. c3 {[%emt 0:01:48]} Re8 {[%emt 0:00:42]} 11. h3 {[%emt 0:07:56]} Nc6 {[%emt 0:06:11]} 12. Bg5 {[%emt 0:04:47]} h6 {[%emt 0:01:31]} 13. Bh4 {[%emt 0:06:09]} Qd6 {[%emt 0:00:55]} 14. Bxf6 {[%emt 0:10:04]} Qxf6 {[%emt 0:00:09]} 15. Nbd4 {[%emt 0:01:56]} Nxd4 {[%emt 0:42:59]} 16. Nxd4 {[%emt 0:00:37]} Bxd4 {[%emt 0:00:08]} 17. cxd4 {[%emt 0:00:06]} Re4 {[%emt 0:00:04]} 18. Bf3 {[%emt 0:03:02]} Rxd4 {[%emt 0:00:06]} 19. Qb3 {[%emt 0:00:12]} Rd2 {[%emt 0:00:14]} 20. Qe3 {[%emt 0:06:28]} Qg5 {[%emt 0:11:15]} 21. Qe8+ {[%emt 0:04:22]} Kh7 {[%emt 0:00:06]} 22. Rad1 {[%emt 0:00:12]} Bg4 {[%emt 0:07:43]} 23. Qxf7 {[%emt 0:04:15]} Bxf3 {[%emt 0:00:40]} 24. Qxf3 {[%emt 0:00:10]} Rxb2 {[%emt 0:04:11]} 25. Rxd5 {[%emt 0:02:16]} Qg6 {[%emt 0:00:31]} 26. Rd7 {[%emt 0:05:39]} Rxa2 {[%emt 0:00:20]} 27. Qxb7 {[%emt 0:08:57]} Rg8 {[%emt 0:01:30]} 28. Qb3 {[%emt 0:05:22]} Ra6 {[%emt 0:04:38]} 29. Rfd1 {[%emt 0:04:19]} Rb6 {[%emt 0:01:28]} 30. Qa3 {[%emt 0:02:12]} a6 {[%emt 0:01:26]} 31. R7d6 {[%emt 0:03:56]} Rxd6 {[%emt 0:01:53]} 32. Rxd6 {[%emt 0:00:08]} Qb1+ {[%emt 0:00:19]} 33. Kh2 {[%emt 0:00:06]} Qb8 {[%emt 0:01:28]} 34. f4 {[%emt 0:03:19]} a5 {[%emt 0:02:42]} 35. Qd3+ {[%emt 0:00:12]} Kh8 {[%emt 0:00:31]} 36. Qd4 {[%emt 0:01:30]} Kh7 {[%emt 0:00:57]} 37. Qd3+ {[%emt 0:01:33]} Kh8 {[%emt 0:00:53]} 38. Qd4 {[%emt 0:00:15]} Kh7 {[%emt 0:00:14]} 39. Qd3+ {[%emt 0:05:02]} 1/2-1/2

[Event "Fagernes GM Swiss 2020"]
[Site "Fagernes"]
[Date "2020.10.06"]
[Round "3.20"]
[White "Oye-Stromberg, Alexander"]
[Black "Tenold, Andreas"]
[Result "1/2-1/2"]
[ECO "B20"]
[WhiteElo "2048"]
[BlackElo "1935"]
[Annotator "RC"]
[PlyCount "110"]
[EventDate "2020.10.04"]
[EventType "swiss"]
[EventCountry "NOR"]
[SourceTitle "playchess.com"]
[Source "ChessBase"]
[SourceQuality "1"]
[TimeControl "40/6000+30:2400+30"]

1. e4 {[%emt 0:00:00]} c5 {[%emt 0:00:00]} 2. a3 {[%emt 0:01:07]} g6 {[%emt 0:00:04]} 3. b4 {[%emt 0:00:08]} Bg7 {[%emt 0:00:06]} 4. Nc3 {[%emt 0:00:05]} d6 {[%emt 0:00:20]} 5. Rb1 {[%emt 0:00:06]} Nf6 {[%emt 0:00:40]} 6. g3 {[%emt 0:00:06]} cxb4 {[%emt 0:00:55]} 7. axb4 {[%emt 0:00:08]} d5 {[%emt 0:00:06]} 8. Bg2 {[%emt 0:26:01]} dxe4 {[%emt 0:01:23]} 9. Nxe4 {[%emt 0:00:23]} Nxe4 {[%emt 0:00:49]} 10. Bxe4 {[%emt 0:00:05]} O-O {[%emt 0:00:12]} 11. Ne2 {[%emt 0:00:24]} Nc6 {[%emt 0:00:51]} 12. Bg2 {[%emt 0:03:40]} Bg4 {[%emt 0:04:44]} 13. h3 {[%emt 0:03:09]} Be6 {[%emt 0:04:20]} 14. O-O {[%emt 0:03:26]} Ba2 {[%emt 0:20:42]} 15. b5 {[%emt 0:09:29]} Bxb1 {[%emt 0:03:04]} 16. bxc6 {[%emt 0:00:17]} bxc6 {[%emt 0:04:08]} 17. d3 {[%emt 0:01:56]} Ba2 {[%emt 0:05:13]} 18. c4 {[%emt 0:03:54]} Rb8 {[%emt 0:05:05]} 19. Qd2 {[%emt 0:09:03]} Bxc4 {[%emt 0:08:10]} 20. dxc4 {[%emt 0:02:06]} Qxd2 {[%emt 0:00:08]} 21. Bxd2 {[%emt 0:00:02]} Rb2 {[%emt 0:00:14]} 22. Be3 {[%emt 0:01:29]} Rxe2 {[%emt 0:00:22]} 23. Bxc6 {[%emt 0:00:09]} Rc8 {[%emt 0:05:07]} 24. Bb5 {[%emt 0:00:08]} Ra2 {[%emt 0:00:18]} 25. c5 {[%emt 0:02:14]} Ra5 {[%emt 0:04:50]} 26. Bd7 {[%emt 0:05:54]} Rc7 {[%emt 0:02:07]} 27. c6 {[%emt 0:01:46]} Ra4 {[%emt 0:10:12]} 28. Kg2 {[%emt 0:05:07]} Bd4 {[%emt 0:12:11]} 29. Bf4 {[%emt 0:05:37]} e5 {[%emt 0:00:28]} 30. Bg5 {[%emt 0:00:40]} Rc4 {[%emt 0:01:35]} 31. Rb1 {[%emt 0:02:53]} Kg7 {[%emt 0:01:59]} 32. Rc1 {[%emt 0:04:10]} Rxc1 {[%emt 0:03:08]} 33. Bxc1 {[%emt 0:00:01]} f6 {[%emt 0:03:42]} 34. Ba3 {[%emt 0:00:06]} Bb6 {[%emt 0:06:01]} 35. f4 {[%emt 0:00:14]} e4 {[%emt 0:00:51]} 36. Bd6 {[%emt 0:00:13]} Rxd7 {[%emt 0:00:53]} 37. cxd7 {[%emt 0:00:06]} Bd8 {[%emt 0:00:05]} 38. f5 {[%emt 0:04:18]} gxf5 {[%emt 0:00:26]} 39. g4 {[%emt 0:00:04]} fxg4 {[%emt 0:01:47]} 40. hxg4 {[%emt 0:00:05]} f5 {[%emt 0:01:50]} 41. Kg3 {[%emt 0:42:31]} Kf6 {[%emt 0:04:42]} 42. Kf4 {[%emt 0:00:00]} fxg4 {[%emt 0:02:33]} 43. Kxg4 {[%emt 0:00:00]} Ke6 {[%emt 0:01:29]} 44. Bf4 {[%emt 0:00:00]} Kd5 {[%emt 0:00:43]} 45. Bg5 {[%emt 0:00:00]} Bc7 {[%emt 0:04:04]} 46. d8=Q+ {[%emt 0:00:00]} Bxd8 {[%emt 0:00:08]} 47. Bxd8 {[%emt 0:00:00]} Kd4 {[%emt 0:00:56]} 48. Kh5 {[%emt 0:00:00]} e3 {[%emt 0:00:32]} 49. Kh6 {[%emt 0:00:00]} e2 {[%emt 0:00:18]} 50. Ba5 {[%emt 0:00:00]} Kd3 {[%emt 0:00:08]} 51. Kxh7 {[%emt 0:00:00]} Kc2 {[%emt 0:00:52]} 52. Kg6 {[%emt 0:00:00]} Kd1 {[%emt 0:00:09]} 53. Kf5 {[%emt 0:00:00]} e1=Q {[%emt 0:01:11]} 54. Bxe1 {[%emt 0:00:00]} Kxe1 {[%emt 0:00:06]} 55. Ke4 {[%emt 0:00:00]} a5 {[%emt 0:00:10]} 1/2-1/2

[Event "Fagernes GM Swiss 2020"]
[Site "Fagernes"]
[Date "2020.10.06"]
[Round "3.21"]
[White "Brodtkorb, Lars Johan"]
[Black "Machlik, Monika"]
[Result "1-0"]
[ECO "A13"]
[WhiteElo "2166"]
[BlackElo "2082"]
[Annotator "RC"]
[PlyCount "53"]
[EventDate "2020.10.04"]
[EventType "swiss"]
[EventCountry "NOR"]
[SourceTitle "playchess.com"]
[Source "ChessBase"]
[SourceQuality "1"]
[TimeControl "40/6000+30:2400+30"]

1. Nf3 {[%emt 0:06:22]} Nf6 {[%emt 0:00:01]} 2. c4 {[%emt 0:00:13]} e6 {[%emt 0:00:07]} 3. g3 {[%emt 0:01:13]} a6 {[%emt 0:01:35]} 4. Bg2 {[%emt 0:01:36]} b5 {[%emt 0:00:08]} 5. b3 {[%emt 0:01:03]} Bb7 {[%emt 0:00:11]} 6. O-O {[%emt 0:02:08]} c5 {[%emt 0:00:13]} 7. Nc3 {[%emt 0:01:18]} Qb6 {[%emt 0:00:09]} 8. e3 {[%emt 0:02:43]} Nc6 {[%emt 0:00:12]} 9. d4 {[%emt 0:04:28]} d6 {[%emt 0:18:37]} 10. d5 {[%emt 0:06:42]} Nd8 {[%emt 0:06:41]} 11. e4 {[%emt 0:04:26]} e5 {[%emt 0:05:33]} 12. Qe2 {[%emt 0:22:57]} b4 {[%emt 0:02:38]} 13. Na4 {[%emt 0:02:38]} Qc7 {[%emt 0:00:31]} 14. Nh4 {[%emt 0:06:21]} g6 {[%emt 0:01:58]} 15. f4 {[%emt 0:00:07]} Nd7 {[%emt 0:01:19]} 16. Nb2 {[%emt 0:09:56]} Bg7 {[%emt 0:03:33]} 17. Nd3 {[%emt 0:00:06]} exf4 {[%emt 0:33:31]} 18. Bb2 {[%emt 0:07:27]} f3 {[%emt 0:07:02]} 19. Nxf3 {[%emt 0:00:42]} f6 {[%emt 0:02:59]} 20. h4 {[%emt 0:17:02]} Nf7 {[%emt 0:11:09]} 21. Ng5 {[%emt 0:03:33]} Nd8 {[%emt 0:06:24]} 22. Qg4 {[%emt 0:05:14]} Ne5 {[%emt 0:01:31]} 23. Bxe5 {[%emt 0:02:22]} dxe5 {[%emt 0:02:04]} 24. Nxh7 {[%emt 0:00:07]} Qf7 {[%emt 0:02:20]} 25. Nxe5 {[%emt 0:00:37]} f5 {[%emt 0:01:30]} 26. Nxf7 {[%emt 0:00:39]} fxg4 {[%emt 0:00:05]} 27. Nxh8 {[%emt 0:00:33]} 1-0

[Event "Fagernes GM Swiss 2020"]
[Site "Fagernes"]
[Date "2020.10.06"]
[Round "3.23"]
[White "Kvendseth, Thyra"]
[Black "Bentsen, Hakon"]
[Result "0-1"]
[ECO "C89"]
[WhiteElo "2017"]
[BlackElo "2120"]
[Annotator "RC"]
[PlyCount "86"]
[EventDate "2020.10.04"]
[EventType "swiss"]
[EventCountry "NOR"]
[SourceTitle "playchess.com"]
[Source "ChessBase"]
[SourceQuality "1"]
[TimeControl "40/6000+30:2400+30"]

1. e4 {[%emt 0:00:00]} e5 {[%emt 0:00:00]} 2. Nf3 {[%emt 0:00:00]} Nc6 {[%emt 0:00:00]} 3. Bb5 {[%emt 0:00:00]} a6 {[%emt 0:00:00]} 4. Ba4 {[%emt 0:00:00]} Nf6 {[%emt 0:00:05]} 5. O-O {[%emt 0:00:22]} b5 {[%emt 0:00:09]} 6. Bb3 {[%emt 0:00:06]} Be7 {[%emt 0:00:41]} 7. Re1 {[%emt 0:01:31]} O-O {[%emt 0:00:17]} 8. c3 {[%emt 0:01:37]} d5 {[%emt 0:01:50]} 9. exd5 {[%emt 0:05:15]} Nxd5 {[%emt 0:00:07]} 10. d4 {[%emt 0:15:59]} exd4 {[%emt 0:01:38]} 11. Nxd4 {[%emt 0:00:11]} Nxd4 {[%emt 0:01:17]} 12. Qxd4 {[%emt 0:03:56]} Be6 {[%emt 0:05:19]} 13. Nd2 {[%emt 0:06:47]} c5 {[%emt 0:08:30]} 14. Qe4 {[%emt 0:02:43]} c4 {[%emt 0:00:09]} 15. Bc2 {[%emt 0:00:19]} Nf6 {[%emt 0:03:30]} 16. Qe2 {[%emt 0:04:51]} Qb6 {[%emt 0:03:48]} 17. Ne4 {[%emt 0:05:18]} Nxe4 {[%emt 0:00:58]} 18. Qxe4 {[%emt 0:00:13]} g6 {[%emt 0:00:06]} 19. Be3 {[%emt 0:07:58]} Bc5 {[%emt 0:00:16]} 20. Bxc5 {[%emt 0:03:32]} Qxc5 {[%emt 0:00:06]} 21. Qe5 {[%emt 0:06:03]} Qxe5 {[%emt 0:01:34]} 22. Rxe5 {[%emt 0:00:02]} Rad8 {[%emt 0:00:26]} 23. Re2 {[%emt 0:01:14]} Rd6 {[%emt 0:00:27]} 24. f3 {[%emt 0:02:55]} Rfd8 {[%emt 0:00:20]} 25. Kf2 {[%emt 0:00:08]} h5 {[%emt 0:01:07]} 26. Rae1 {[%emt 0:03:06]} Kg7 {[%emt 0:00:24]} 27. h4 {[%emt 0:00:34]} Kf6 {[%emt 0:00:38]} 28. Be4 {[%emt 0:07:46]} a5 {[%emt 0:04:06]} 29. a3 {[%emt 0:04:03]} b4 {[%emt 0:02:06]} 30. axb4 {[%emt 0:00:09]} axb4 {[%emt 0:00:05]} 31. cxb4 {[%emt 0:02:09]} Rb8 {[%emt 0:00:10]} 32. Rc1 {[%emt 0:00:36]} Rxb4 {[%emt 0:00:07]} 33. Rcc2 {[%emt 0:04:03]} Rd1 {[%emt 0:02:48]} 34. Red2 {[%emt 0:01:15]} Rxd2+ {[%emt 0:04:11]} 35. Rxd2 {[%emt 0:00:06]} Ke5 {[%emt 0:00:06]} 36. g3 {[%emt 0:05:57]} Rb6 {[%emt 0:03:51]} 37. Ke3 {[%emt 0:01:16]} Rb3+ {[%emt 0:00:07]} 38. Kf2 {[%emt 0:01:01]} Kf6 {[%emt 0:08:52]} 39. Bb1 {[%emt 0:05:40]} c3 {[%emt 0:00:25]} 40. Re2 {[%emt 0:00:50]} Rxb2 {[%emt 0:00:21]} 41. Bd3 {[%emt 0:40:38]} Bf5 {[%emt 0:41:19]} 42. Bxf5 {[%emt 0:00:31]} Kxf5 {[%emt 0:00:05]} 43. Ke3 {[%emt 0:00:45]} c2 {[%emt 0:00:20]} 0-1